fUSD/lending_fUSD_20241222
["ID","MTS","AMOUNT","RATE_DAILY","PERIOD"]
[346301210,1734880239144,-500.0,0.00019178,2]
[346301213,1734880239153,-918.3,0.00019178,2]
[346301215,1734880239165,-500.0,0.00019178,2]
[346301217,1734880239175,-427.20718414,0.00019178,2]
[346301219,1734880239184,-500.0,0.00019178,2]
[346301221,1734880239194,-478.32982356,0.00019178,2]
[346301223,1734880239203,-500.0,0.00019178,2]
[346301224,1734880239212,-500.0,0.00019178,2]
[346301225,1734880239222,-500.0,0.00019178,2]
[346301226,1734880239231,-500.0,0.00019178,2]
[346301227,1734880239241,-500.0,0.00019178,2]
[346301228,1734880239250,-500.0,0.00019178,2]
[346301229,1734880239260,-500.0,0.00019178,2]
[346301230,1734880239269,-470.99274193,0.00019178,2]
[346301231,1734880239278,-500.0,0.00019178,2]
[346301232,1734880239287,-500.0,0.00019178,2]
[346301233,1734880239297,-500.0,0.00019178,2]
[346301234,1734880239306,-500.0,0.00019178,2]
[346301235,1734880239316,-500.0,0.00019178,2]
[346301236,1734880239326,-500.0,0.00019178,2]
[346301237,1734880239337,-500.0,0.00019178,2]
[346301238,1734880239347,-500.0,0.00019178,2]
[346301239,1734880239356,-500.0,0.00019178,2]
[346301240,1734880239366,-924.71,0.00019178,2]
[346301241,1734880239377,-500.0,0.00019178,2]
[346301242,1734880239391,-500.0,0.00019178,2]
[346301243,1734880239401,-500.0,0.00019178,2]
[346301244,1734880239411,-500.0,0.00019178,2]
[346301245,1734880239420,-500.0,0.00019178,2]
[346301246,1734880239431,-576.2,0.00019178,2]
[346301247,1734880239440,-500.0,0.00019178,2]
[346301248,1734880239449,-500.0,0.00019178,2]
[346301249,1734880239458,-500.0,0.00019178,2]
[346301250,1734880239468,-500.0,0.00019178,2]
[346301251,1734880239478,-500.0,0.00019178,2]
[346301252,1734880239488,-500.0,0.00019178,2]
[346301253,1734880239498,-5369.6,0.00019178,2]
[346301254,1734880239509,-500.0,0.00019178,2]
[346301255,1734880239524,-418.9735228,0.00019178,2]
[346301256,1734880239539,-500.0,0.00019178,2]
[346301257,1734880239553,-500.0,0.00019178,2]
[346301258,1734880239565,-636.63,0.00019178,2]
[346301259,1734880239581,-500.0,0.00019178,2]
[346301260,1734880239598,-329.64208021,0.00019178,2]
[346301261,1734880239613,-500.0,0.00019178,2]
[346301262,1734880239630,-371.38986763,0.00019178,2]
[346301263,1734880239644,-506.22658933,0.00019178,2]
[346301264,1734880239657,-832.8,0.00019178,2]
[346301265,1734880239669,-500.0,0.00019178,2]
[346301266,1734880239684,-524.31324442,0.00019178,2]
[346301267,1734880239697,-500.0,0.00019178,2]
[346301268,1734880239711,-500.0,0.00019178,2]
[346301269,1734880239725,-308.87864301,0.00019178,2]
[346301270,1734880239740,-577.25,0.00019178,2]
[346301271,1734880239754,-500.0,0.00019178,2]
[346301272,1734880239767,-500.0,0.00019178,2]
[346301273,1734880239782,-500.0,0.00019178,2]
[346301274,1734880239796,-584.87,0.00019178,2]
[346301275,1734880239808,-558.76442875,0.00019178,2]
[346301276,1734880239821,-500.0,0.00019178,2]
[346301277,1734880239837,-1063.13,0.00019178,2]
[346301278,1734880239851,-500.0,0.00019178,2]
[346301279,1734880239865,-639.69,0.00019178,2]
[346301280,1734880239878,-500.0,0.00019178,2]
[346301281,1734880239890,-500.0,0.00019178,2]
[346301282,1734880239901,-500.0,0.00019178,2]
[346301283,1734880239914,-500.0,0.00019178,2]
[346301284,1734880239930,-1038.35,0.00019178,2]
[346301285,1734880239942,-500.0,0.00019178,2]
[346301286,1734880239953,-500.0,0.00019178,2]
[346301287,1734880239964,-500.0,0.00019178,2]
[346301288,1734880239977,-500.0,0.00019178,2]
[346301289,1734880239991,-500.0,0.00019178,2]
[346301290,1734880240004,-500.0,0.00019178,2]
[346301291,1734880240015,-500.0,0.00019178,2]
[346301292,1734880240026,-407.20956934,0.00019178,2]
[346301293,1734880240038,-591.15201719,0.00019178,2]
[346301294,1734880240050,-500.0,0.00019178,2]
[346301295,1734880240062,-500.0,0.00019178,2]
[346301297,1734880240073,-500.0,0.00019178,2]
[346301298,1734880240090,-500.0,0.00019178,2]
[346301299,1734880240102,-500.0,0.00019178,2]
[346301300,1734880240115,-581.27,0.00019178,2]
[346301301,1734880240127,-827.63,0.00019178,2]
[346301302,1734880240139,-634.17,0.00019178,2]
[346301303,1734880240151,-500.0,0.00019178,2]
[346301304,1734880240164,-500.0,0.00019178,2]
[346301305,1734880240176,-500.0,0.00019178,2]
[346301306,1734880240188,-874.71,0.00019178,2]
[346301307,1734880240201,-632.48,0.00019178,2]
[346301308,1734880240213,-500.0,0.00019178,2]
[346301309,1734880240225,-500.0,0.00019178,2]
[346301310,1734880240238,-192.078872,0.00019178,2]
[346301311,1734880240250,-1960.52,0.00019178,2]
[346301312,1734880240262,-509.4,0.00019178,2]
[346301313,1734880240273,-159.034062,0.00019178,2]
[346301314,1734880240286,-500.0,0.00019178,2]
[346301315,1734880240298,-495.14654297,0.00019178,2]
[346301316,1734880240310,-2933.81,0.00019178,2]
[346301317,1734880240322,-500.0,0.00019178,2]
[346301318,1734880240337,-248.64512297,0.00019178,2]
[346301319,1734880240350,-645.75,0.00019178,2]
[346301320,1734880240362,-500.0,0.00019178,2]
[346301321,1734880240374,-500.0,0.00019178,2]
[346301322,1734880240389,-500.0,0.00019178,2]
[346301323,1734880240400,-500.0,0.00019178,2]
[346301324,1734880240413,-500.0,0.00019178,2]
[346301325,1734880240425,-898.74,0.00019178,2]
[346301326,1734880240438,-500.0,0.00019178,2]
[346301327,1734880240450,-500.0,0.00019178,2]
[346301328,1734880240463,-500.0,0.00019178,2]
[346301329,1734880240474,-500.0,0.00019178,2]
[346301330,1734880240486,-500.0,0.00019178,2]
[346301331,1734880240498,-500.0,0.00019178,2]
[346301332,1734880240510,-500.0,0.00019178,2]
[346301333,1734880240522,-521.76,0.00019178,2]
[346301334,1734880240535,-1018.01,0.00019178,2]
[346301335,1734880240547,-506.8899845,0.00019178,2]
[346301336,1734880240559,-500.0,0.00019178,2]
[346301337,1734880240571,-500.0,0.00019178,2]
[346301338,1734880240585,-1919.12,0.00019178,2]
[346301339,1734880240597,-10390.03,0.00019178,2]
[346301340,1734880240609,-500.0,0.00019178,2]
[346301341,1734880240622,-814.92,0.00019178,2]
[346301342,1734880240639,-599.13,0.00019178,2]
[346301343,1734880240652,-500.0,0.00019178,2]
[346301344,1734880240663,-1116.62,0.00019178,2]
[346301345,1734880240676,-500.0,0.00019178,2]
[346301346,1734880240687,-619.48,0.00019178,2]
[346301347,1734880240699,-11743.15,0.00019178,2]
[346301348,1734880240712,-500.0,0.00019178,2]
[346301349,1734880240724,-500.0,0.00019178,2]
[346301350,1734880240736,-500.0,0.00019178,2]
[346301351,1734880240748,-500.0,0.00019178,2]
[346301352,1734880240760,-500.0,0.00019178,2]
[346301353,1734880240772,-2597.94,0.00019178,2]
[346301354,1734880240783,-931.55,0.00019178,2]
[346301355,1734880240795,-601.63,0.00019178,2]
[346301356,1734880240807,-1135.81,0.00019178,2]
[346301357,1734880240819,-500.0,0.00019178,2]
[346301358,1734880240830,-777.14,0.00019178,2]
[346301359,1734880240842,-804.1,0.00019178,2]
[346301360,1734880240854,-500.0,0.00019178,2]
[346301361,1734880240867,-2225.35,0.00019178,2]
[346301362,1734880240879,-500.0,0.00019178,2]
[346301363,1734880240891,-6009.63,0.00019178,2]
[346301364,1734880240903,-804.68,0.00019178,2]
[346301365,1734880240915,-1000.0,0.00019178,2]
[346301366,1734880240926,-804.14,0.00019178,2]
[346301367,1734880240937,-500.0,0.00019178,2]
[346301368,1734880240949,-713.18,0.00019178,2]
[346301369,1734880240960,-762.57,0.00019178,2]
[346301370,1734880240971,-3582.07,0.00019178,2]
[346301371,1734880240983,-500.0,0.00019178,2]
[346301372,1734880240995,-876.18,0.00019178,2]
[346301373,1734880241006,-617.15,0.00019178,2]
[346301374,1734880241018,-571.33,0.00019178,2]
[346301375,1734880241030,-500.0,0.00019178,2]
[346301378,1734880241042,-500.0,0.00019178,2]
[346301380,1734880241053,-500.0,0.00019178,2]
[346301382,1734880241066,-486.82349879,0.00019178,2]
[346301385,1734880241078,-37338.52,0.00019178,2]
[346301387,1734880241091,-500.0,0.00019178,2]
[346301389,1734880241104,-1322.92,0.00019178,2]
[346301391,1734880241116,-500.0,0.00019178,2]
[346301393,1734880241127,-526.16,0.00019178,2]
[346301396,1734880241138,-500.0,0.00019178,2]
[346301398,1734880241148,-580.23,0.00019178,2]
[346301400,1734880241157,-680.7,0.00019178,2]
[346301401,1734880241167,-500.0,0.00019178,2]
[346301403,1734880241176,-1354.79,0.00019178,2]
[346301405,1734880241185,-500.0,0.00019178,2]
[346301407,1734880241194,-500.0,0.00019178,2]
[346301409,1734880241204,-500.0,0.00019178,2]
[346301411,1734880241213,-1434.85,0.00019178,2]
[346301413,1734880241222,-500.0,0.00019178,2]
[346301415,1734880241232,-50513.32,0.00019178,2]
[346301427,1734880241483,-500.0,0.00019178,2]
[346301428,1734880241508,-173.96458607,0.00019178,2]
[346301429,1734880241523,-500.0,0.00019178,2]
[346301430,1734880241533,-8806.27,0.00019178,2]
[346301431,1734880241543,-500.0,0.00019178,2]
[346301432,1734880241553,-646.63,0.00019178,2]
[346301433,1734880241563,-5742.43,0.00019178,2]
[346301434,1734880241572,-704.51,0.00019178,2]
[346301435,1734880241584,-500.0,0.00019178,2]
[346301436,1734880241594,-1387.61,0.00019178,2]
[346301437,1734880241603,-1956.67,0.00019178,2]
[346301438,1734880241612,-3067.88,0.00019178,2]
[346301439,1734880241622,-516.61,0.00019178,2]
[346301440,1734880241631,-500.0,0.00019178,2]
[346301441,1734880241641,-6716.82,0.00019178,2]
[346301442,1734880241651,-500.0,0.00019178,2]
[346301443,1734880241660,-3090.6,0.00019178,2]
[346301444,1734880241670,-593.18913161,0.00019178,2]
[346301445,1734880241679,-500.0,0.00019178,2]
[346301446,1734880241687,-500.0,0.00019178,2]
[346301447,1734880241697,-4344.54,0.00019178,2]
[346301448,1734880241706,-647.8,0.00019178,2]
[346301449,1734880241716,-82104.88,0.00019178,2]
[346301450,1734880241725,-1949.65,0.00019178,2]
[346301451,1734880241734,-1949.65,0.00019178,2]
[346301452,1734880241743,-1949.65,0.00019178,2]
[346301453,1734880241753,-1628.64,0.00019178,2]
[346301454,1734880241763,-500.0,0.00019178,2]
[346301455,1734880241773,-500.0,0.00019178,2]
[346301456,1734880241783,-759.7,0.00019178,2]
[346301457,1734880241792,-8535.31,0.00019178,2]
[346301458,1734880241801,-1170.26,0.00019178,2]
[346301459,1734880241810,-2923.14,0.00019178,2]
[346301460,1734880241820,-500.0,0.00019178,2]
[346301461,1734880241832,-1667.66,0.00019178,2]
[346301462,1734880241842,-500.0,0.00019178,2]
[346301463,1734880241851,-752.5,0.00019178,2]
[346301464,1734880241861,-500.0,0.00019178,2]
[346301465,1734880241870,-797.68,0.00019178,2]
[346301466,1734880241879,-6107.43,0.00019178,2]
[346301467,1734880241889,-684.04,0.00019178,2]
[346301468,1734880241898,-925.98,0.00019178,2]
[346301469,1734880241907,-500.0,0.00019178,2]
[346301470,1734880241916,-751.3,0.00019178,2]
[346301471,1734880241926,-833.37,0.00019178,2]
[346301472,1734880241935,-3268.98,0.00019178,2]
[346301473,1734880241944,-500.0,0.00019178,2]
[346301474,1734880241953,-1334.75,0.00019178,2]
[346301475,1734880241962,-507.23167734,0.00019178,2]
[346301476,1734880241971,-337.72,0.00019178,2]
[346301477,1734880241980,-605.61,0.00019178,2]
[346301478,1734880241989,-500.0,0.00019178,2]
[346301479,1734880241998,-500.0,0.00019178,2]
[346301480,1734880242007,-23241.57,0.00019178,2]
[346301481,1734880242018,-1401.76,0.00019178,2]
[346301482,1734880242027,-500.0,0.00019178,2]
[346301483,1734880242037,-500.0,0.00019178,2]
[346301484,1734880242047,-895.54,0.00019178,2]
[346301485,1734880242056,-500.0,0.00019178,2]
[346301486,1734880242065,-500.0,0.00019178,2]
[346301487,1734880242074,-643.78,0.00019178,2]
[346301488,1734880242087,-500.0,0.00019178,2]
[346301489,1734880242096,-8966.33,0.00019178,2]
[346301490,1734880242105,-580.63,0.00019178,2]
[346301491,1734880242115,-500.0,0.00019178,2]
[346301492,1734880242124,-1045.49,0.00019178,2]
[346301493,1734880242134,-1487.85,0.00019178,2]
[346301494,1734880242143,-500.0,0.00019178,2]
[346301495,1734880242152,-701.99,0.00019178,2]
[346301496,1734880242161,-500.0,0.00019178,2]
[346301497,1734880242171,-500.0,0.00019178,2]
[346301498,1734880242180,-500.0,0.00019178,2]
[346301499,1734880242189,-5482.21,0.00019178,2]
[346301500,1734880242198,-500.0,0.00019178,2]
[346301501,1734880242208,-2378.88,0.00019178,2]
[346301502,1734880242217,-665.83,0.00019178,2]
[346301503,1734880242226,-212.62372545,0.00019178,2]
[346301504,1734880242235,-21889.45,0.00019178,2]
[346301505,1734880242245,-638.42,0.00019178,2]
[346301506,1734880242254,-500.0,0.00019178,2]
[346301507,1734880242263,-500.0,0.00019178,2]
[346301508,1734880242272,-500.0,0.00019178,2]
[346301509,1734880242281,-8317.57,0.00019178,2]
[346301510,1734880242291,-619.14,0.00019178,2]
[346301511,1734880242300,-2612.15,0.00019178,2]
[346301512,1734880242311,-2012.48,0.00019178,2]
[346301513,1734880242320,-857.43,0.00019178,2]
[346301514,1734880242332,-500.0,0.00019178,2]
[346301515,1734880242341,-255.811772,0.00019178,2]
[346301516,1734880242351,-500.0,0.00019178,2]
[346301517,1734880242360,-1440.53,0.00019178,2]
[346301518,1734880242370,-778.65,0.00019178,2]
[346301519,1734880242379,-500.0,0.00019178,2]
[346301520,1734880242391,-4508.61,0.00019178,2]
[346301521,1734880242401,-8368.61,0.00019178,2]
[346301522,1734880242410,-500.0,0.00019178,2]
[346301523,1734880242419,-500.0,0.00019178,2]
[346301524,1734880242428,-500.0,0.00019178,2]
[346301525,1734880242439,-500.0,0.00019178,2]
[346301526,1734880242448,-500.0,0.00019178,2]
[346301527,1734880242457,-29064.2,0.00019178,2]
[346301528,1734880242467,-500.0,0.00019178,2]
[346301529,1734880242477,-500.0,0.00019178,2]
[346301530,1734880242486,-468.411612,0.00019178,2]
[346301531,1734880242495,-30827.32,0.00019178,2]
[346301532,1734880242504,-500.0,0.00019178,2]
[346301533,1734880242513,-500.0,0.00019178,2]
[346301534,1734880242523,-156.438624,0.00019178,2]
[346301535,1734880242532,-4578.26,0.00019178,2]
[346301536,1734880242540,-500.0,0.00019178,2]
[346301537,1734880242550,-5540.24,0.00019178,2]
[346301538,1734880242559,-500.0,0.00019178,2]
[346301539,1734880242567,-500.0,0.00019178,2]
[346301540,1734880242577,-500.0,0.00019178,2]
[346301541,1734880242587,-500.0,0.00019178,2]
[346301542,1734880242596,-801.02,0.00019178,2]
[346301543,1734880242605,-1651.11,0.00019178,2]
[346301544,1734880242614,-1586.0,0.00019178,2]
[346301545,1734880242624,-500.0,0.00019178,2]
[346301546,1734880242634,-500.0,0.00019178,2]
[346301547,1734880242644,-815.76,0.00019178,2]
[346301548,1734880242653,-500.0,0.00019178,2]
[346301549,1734880242662,-500.0,0.00019178,2]
[346301550,1734880242672,-1111.69,0.00019178,2]
[346301551,1734880242681,-500.0,0.00019178,2]
[346301552,1734880242690,-1021.38,0.00019178,2]
[346301553,1734880242699,-663.33,0.00019178,2]
[346301554,1734880242708,-786.09,0.00019178,2]
[346301555,1734880242717,-4000.0,0.00019178,2]
[346301556,1734880242726,-420.0,0.00019193,2]
[346301557,1734880242735,-3954.55982033,0.00019233,2]
[346301558,1734880242744,-5507.33390482,0.00019261,2]
[346301559,1734880242753,-158.20479793,0.00019288,2]
[346301560,1734880242762,-3954.55982033,0.00019329,2]
[346301561,1734880242772,-392.04,0.00019339,2]
[346301562,1734880242781,-210.85,0.00019339,7]
[346301563,1734880242790,-1376.31,0.00019339,2]
[346301564,1734880242800,-49930.96,0.00019339,2]
[346301565,1734880242809,-20861.25,0.00019339,2]
[346301566,1734880242818,-9999.99,0.00019339,2]
[346301567,1734880242828,-327.31,0.00019339,2]
[346301568,1734880242841,-9999.99,0.00019339,2]
[346301569,1734880242850,-9999.99,0.00019339,2]
[346301570,1734880242860,-3471.56,0.00019339,2]
[346301571,1734880242869,-150.99,0.00019339,2]
[346301572,1734880242879,-499.99,0.00019339,2]
[346301573,1734880242888,-955.27,0.00019339,2]
[346301574,1734880242898,-999.99,0.00019339,2]
[346301575,1734880242907,-9999.99,0.00019339,2]
[346301576,1734880242917,-150.99,0.00019339,2]
[346301577,1734880242926,-1509.28,0.00019339,2]
[346301579,1734880242936,-460.67,0.00019339,2]
[346301580,1734880242946,-476.98,0.00019339,2]
[346301581,1734880242957,-472.08,0.00019339,2]
[346301582,1734880242978,-150.0,0.00019344,2]
[346301584,1734880242988,-423.07399391,0.00019345,2]
[346301586,1734880242997,-185.91816351,0.00019352,2]
[346301587,1734880243007,-165.47292254,0.00019352,2]
[346301588,1734880243018,-5507.33390482,0.00019352,2]
[346301589,1734880243027,-301.07,0.0001937,2]
[346301590,1734880243036,-150.0,0.0001937,2]
[346301591,1734880243046,-150.0,0.0001937,2]
[346301592,1734880243056,-150.0,0.0001937,2]
[346301594,1734880243065,-150.0,0.0001937,2]
[346301595,1734880243082,-150.0,0.0001937,2]
[346301596,1734880243096,-150.0,0.0001937,2]
[346301598,1734880243105,-365.13,0.0001937,2]
[346301600,1734880243115,-150.0,0.0001937,2]
[346301602,1734880243124,-150.0,0.0001937,2]
[346301604,1734880243134,-1000.0,0.000194,2]
[346301606,1734880243143,-3954.55982033,0.00019424,2]
[346301607,1734880243152,-2343.83062569,0.00019442,2]
[346301608,1734880243161,-2597.20668634,0.00019442,2]
[346301609,1734880243171,-4307.86048951,0.00019443,2]
[346301610,1734880243181,-6358.72567895,0.00019443,2]
[346301612,1734880243191,-2343.83062569,0.00019443,2]
[346301613,1734880243201,-5507.33390482,0.00019443,2]
[346301614,1734880243211,-2871.90699301,0.00019444,2]
[346301615,1734880243221,-2343.83062569,0.00019446,2]
[346301616,1734880243231,-2597.20668634,0.00019447,2]
[346301617,1734880243242,-1435.95349651,0.00019447,2]
[346301618,1734880243251,-2871.90699301,0.00019448,2]
[346301619,1734880243261,-2871.90699301,0.00019449,2]
[346301620,1734880243271,-1435.95349651,0.0001945,2]
[346301621,1734880243281,-1949.65,0.00019451,2]
[346301622,1734880243291,-1949.65,0.00019451,2]
[346301623,1734880243300,-865.73556211,0.00019452,2]
[346301624,1734880243310,-555.467644,0.00019452,2]
[346301625,1734880243319,-3335.593882,0.00019452,2]
[346301626,1734880243328,-500.0,0.00019452,2]
[346301627,1734880243339,-588.28677955,0.00019452,2]
[346301628,1734880243348,-500.0,0.00019452,2]
[346301629,1734880243358,-500.0,0.00019452,2]
[346301630,1734880243368,-500.0,0.00019452,2]
[346301631,1734880243378,-500.0,0.00019452,2]
[346301632,1734880243391,-500.0,0.00019452,2]
[346301633,1734880243401,-500.0,0.00019452,2]
[346301634,1734880243411,-500.0,0.00019452,2]
[346301635,1734880243421,-500.0,0.00019452,2]
[346301636,1734880243430,-607.7,0.00019452,2]
[346301637,1734880243439,-500.0,0.00019452,2]
[346301638,1734880243448,-500.0,0.00019452,2]
[346301639,1734880243458,-500.0,0.00019452,2]
[346301640,1734880243467,-200.31553378,0.00019452,2]
[346301641,1734880243475,-500.0,0.00019452,2]
[346301642,1734880243484,-500.0,0.00019452,2]
[346301643,1734880243493,-500.0,0.00019452,2]
[346301644,1734880243502,-500.0,0.00019452,2]
[346301645,1734880243511,-500.0,0.00019452,2]
[346301646,1734880243520,-500.0,0.00019452,2]
[346301647,1734880243529,-500.0,0.00019452,2]
[346301648,1734880243538,-500.0,0.00019452,2]
[346301649,1734880243548,-500.0,0.00019452,2]
[346301650,1734880243556,-500.0,0.00019452,2]
[346301651,1734880243565,-500.0,0.00019452,2]
[346301652,1734880243574,-500.0,0.00019452,2]
[346301653,1734880243585,-500.0,0.00019452,2]
[346301654,1734880243595,-500.0,0.00019452,2]
[346301655,1734880243605,-500.0,0.00019452,2]
[346301656,1734880243615,-500.0,0.00019452,2]
[346301657,1734880243624,-500.0,0.00019452,2]
[346301658,1734880243633,-621.69,0.00019452,2]
[346301659,1734880243643,-500.0,0.00019452,2]
[346301660,1734880243653,-500.0,0.00019452,2]
[346301661,1734880243662,-500.0,0.00019452,2]
[346301662,1734880243672,-1232.4,0.00019452,2]
[346301663,1734880243682,-500.0,0.00019452,2]
[346301664,1734880243691,-234.91452219,0.00019452,2]
[346301665,1734880243701,-500.0,0.00019452,2]
[346301666,1734880243710,-500.0,0.00019452,2]
[346301667,1734880243719,-500.0,0.00019452,2]
[346301668,1734880243729,-500.0,0.00019452,2]
[346301669,1734880243738,-574.87,0.00019452,2]
[346301670,1734880243748,-500.0,0.00019452,2]
[346301671,1734880243758,-909.49,0.00019452,2]
[346301672,1734880243767,-528.02,0.00019452,2]
[346301673,1734880243777,-500.0,0.00019452,2]
[346301674,1734880243786,-512.36,0.00019452,2]
[346301675,1734880243795,-500.0,0.00019452,2]
[346301676,1734880243805,-500.0,0.00019452,2]
[346301677,1734880243815,-500.0,0.00019452,2]
[346301678,1734880243824,-500.0,0.00019452,2]
[346301679,1734880243836,-500.0,0.00019452,2]
[346301680,1734880243846,-500.0,0.00019452,2]
[346301681,1734880243856,-500.0,0.00019452,2]
[346301682,1734880243865,-500.0,0.00019452,2]
[346301683,1734880243875,-896.47,0.00019452,2]
[346301684,1734880243884,-500.0,0.00019452,2]
[346301685,1734880243893,-500.0,0.00019452,2]
[346301686,1734880243903,-500.0,0.00019452,2]
[346301687,1734880243913,-500.0,0.00019452,2]
[346301688,1734880243923,-500.0,0.00019452,2]
[346301689,1734880243932,-500.0,0.00019452,2]
[346301690,1734880243942,-500.0,0.00019452,2]
[346301691,1734880243951,-575.27,0.00019452,2]
[346301692,1734880243961,-343.08553569,0.00019452,2]
[346301693,1734880243971,-500.0,0.00019452,2]
[346301694,1734880243980,-500.0,0.00019452,2]
[346301695,1734880243990,-568.22,0.00019452,2]
[346301696,1734880243999,-500.0,0.00019452,2]
[346301697,1734880244008,-500.0,0.00019452,2]
[346301698,1734880244019,-500.0,0.00019452,2]
[346301699,1734880244028,-500.0,0.00019452,2]
[346301700,1734880244037,-500.0,0.00019452,2]
[346301701,1734880244046,-174.31,0.00019452,2]
[346301702,1734880244055,-531.39,0.00019452,2]
[346301703,1734880244065,-500.0,0.00019452,2]
[346301704,1734880244074,-500.0,0.00019452,2]
[346301705,1734880244087,-500.0,0.00019452,2]
[346301706,1734880244096,-500.0,0.00019452,2]
[346301707,1734880244107,-562.79,0.00019452,2]
[346301708,1734880244116,-417.8688125,0.00019452,2]
[346301709,1734880244126,-523.00446046,0.00019452,2]
[346301710,1734880244135,-500.0,0.00019452,2]
[346301711,1734880244145,-918.3,0.00019452,2]
[346301712,1734880244156,-500.0,0.00019452,2]
[346301713,1734880244165,-500.0,0.00019452,2]
[346301715,1734880244174,-500.0,0.00019452,2]
[346301716,1734880244184,-500.0,0.00019452,2]
[346301717,1734880244193,-500.0,0.00019452,2]
[346301718,1734880244203,-500.0,0.00019452,2]
[346301719,1734880244212,-500.0,0.00019452,2]
[346301720,1734880244222,-500.0,0.00019452,2]
[346301721,1734880244231,-500.0,0.00019452,2]
[346301722,1734880244241,-500.0,0.00019452,2]
[346301723,1734880244250,-924.71,0.00019452,2]
[346301724,1734880244260,-500.0,0.00019452,2]
[346301725,1734880244269,-500.0,0.00019452,2]
[346301726,1734880244280,-576.2,0.00019452,2]
[346301727,1734880244289,-500.0,0.00019452,2]
[346301728,1734880244299,-500.0,0.00019452,2]
[346301729,1734880244308,-5369.6,0.00019452,2]
[346301730,1734880244319,-500.0,0.00019452,2]
[346301731,1734880244329,-636.63,0.00019452,2]
[346301732,1734880244342,-500.0,0.00019452,2]
[346301733,1734880244352,-832.8,0.00019452,2]
[346301734,1734880244363,-500.0,0.00019452,2]
[346301735,1734880244372,-500.0,0.00019452,2]
[346301736,1734880244384,-577.25,0.00019452,2]
[346301737,1734880244396,-500.0,0.00019452,2]
[346301738,1734880244405,-500.0,0.00019452,2]
[346301739,1734880244415,-584.87,0.00019452,2]
[346301740,1734880244426,-249.94,0.00019452,2]
[346301741,1734880244436,-1063.13,0.00019452,2]
[346301742,1734880244445,-500.0,0.00019452,2]
[346301743,1734880244455,-500.0,0.00019452,2]
[346301744,1734880244466,-500.0,0.00019452,2]
[346301745,1734880244476,-500.0,0.00019452,2]
[346301746,1734880244486,-1038.35,0.00019452,2]
[346301747,1734880244495,-500.0,0.00019452,2]
[346301748,1734880244505,-500.0,0.00019452,2]
[346301749,1734880244514,-500.0,0.00019452,2]
[346301750,1734880244524,-500.0,0.00019452,2]
[346301751,1734880244534,-500.0,0.00019452,2]
[346301752,1734880244543,-500.0,0.00019452,2]
[346301753,1734880244552,-500.0,0.00019452,2]
[346301754,1734880244562,-581.27,0.00019452,2]
[346301755,1734880244571,-827.63,0.00019452,2]
[346301756,1734880244584,-500.0,0.00019452,2]
[346301757,1734880244593,-874.71,0.00019452,2]
[346301758,1734880244730,-632.48,0.00019452,2]
[346301759,1734880244765,-500.0,0.00019452,2]
[346301760,1734880244775,-248.23536329,0.00019452,2]